bitfinex-derivatives/quotes_SOLF0:USTF0_20240930
["timestamp","ask_amount","ask_price","bid_price","bid_amount"]
[1727672888115,86.0,156.3,156.28,7.89]
[1727672889219,3.199,156.29,156.28,7.89]
[1727672891910,89.1989,156.3,156.28,7.89]
[1727672893121,86.0,156.3,156.28,7.89]
[1727672893311,3.199,156.29,156.28,7.89]
[1727672894815,86.0,156.3,156.28,7.89]
[1727672895010,86.0,156.3,156.29,7.89]
[1727672900125,56.37066633,156.35,156.29,7.89]
[1727672900431,0.12502,156.35,156.32,7.89]
[1727672900727,3.1981,156.34,156.32,7.89]
[1727672902327,3.1981,156.34,156.29,3.1989]
[1727672902626,3.1981,156.34,156.31,7.89]
[1727672902831,3.198,156.34,156.31,7.89]
[1727672903528,3.1982,156.33,156.31,7.89]
[1727672904319,41.1982,156.33,156.31,7.89]
[1727672904923,38.0,156.33,156.32,7.89]
[1727672905636,38.0,156.33,156.25,0.5688]
[1727672905931,38.0,156.33,156.28,3.1991]
[1727672906130,38.0,156.33,156.25,0.5688]
[1727672906131,3.1984,156.32,156.25,0.5688]
[1727672906328,38.0,156.33,156.31,7.89]
[1727672906831,41.1983,156.33,156.3,7.89]
[1727672907039,38.0,156.33,156.28,7.89]
[1727672907423,3.1987,156.31,156.26,3.1994]
[1727672907626,3.1987,156.31,156.29,7.89]
[1727672908128,3.1987,156.31,156.28,7.89]
[1727672909335,3.1987,156.31,156.26,3.1995]
[1727672909533,3.1987,156.31,156.29,7.89]
[1727672910223,3.1984,156.32,156.29,7.89]
[1727672910423,38.0,156.33,156.29,7.89]
[1727672911033,41.1982,156.33,156.29,7.89]
[1727672911537,41.1982,156.33,156.3,7.89]
[1727672915034,38.0,156.33,156.32,7.89]
[1727672916140,38.0,156.34,156.32,7.89]
[1727672920037,38.0,156.34,156.33,7.89]
[1727672920538,38.0,156.34,156.29,3.234353]
[1727672920539,38.0,156.34,156.32,7.89]
[1727672920938,38.0,156.34,156.26,27.68146654]
[1727672921145,3.1983,156.33,156.3,7.89]
[1727672921939,45.89,156.34,156.24,2.8829]
[1727672922141,7.89,156.33,156.28,7.89]
[1727672922737,3.1987,156.31,156.29,7.89]
[1727672922936,39.404,156.34,156.29,7.89]
[1727672923239,3.1989,156.3,156.28,7.89]
[1727672924347,3.1989,156.3,156.25,3.1998]
[1727672924547,3.1989,156.3,156.27,7.89]
[1727672924743,3.199,156.29,156.27,7.89]
[1727672925245,3.199,156.29,156.26,7.89]
[1727672926031,3.1992,156.28,156.25,7.89]
[1727672926340,45.89,156.29,156.24,7.89]
[1727672926539,45.89,156.29,156.25,7.69917966]
[1727672926838,45.89,156.29,156.24,7.89]
[1727672926839,3.1994,156.27,156.24,7.89]
[1727672928948,3.1992,156.28,156.25,7.89]
[1727672929945,41.199,156.29,156.25,7.89]
[1727672932249,38.0,156.29,156.25,7.89]
[1727672932455,38.0,156.29,156.27,7.89]
[1727672934955,38.0,156.29,156.28,7.89]
[1727672936248,38.0,156.29,156.28,11.0892]
[1727672936444,38.0,156.29,156.28,7.89]
[1727672937254,38.0,156.29,156.28,15.58440549]
[1727672937959,38.0,156.29,156.28,18.78360549]
[1727672938157,38.0,156.29,156.28,11.0892]
[1727672938356,38.0,156.29,156.28,18.78341657]
[1727672941058,38.0,156.29,156.28,11.0892]
[1727672941262,38.0,156.29,156.28,18.78133788]
[1727672942448,37.4279,156.29,156.28,18.78133788]
[1727672942861,37.4279,156.29,156.28,31.08882683]
[1727672943671,37.4279,156.29,156.28,11.0892]
[1727672943859,37.4279,156.29,156.28,31.08695107]
[1727672945160,37.4279,156.29,156.28,18.78064272]
[1727672945866,1.53902,156.35,156.3,3.1987]
[1727672945867,4.73692,156.35,156.3,3.1987]
[1727672946064,0.12502,156.35,156.32,7.89]
[1727672947164,0.12502,156.35,156.29,3.17824]
[1727672947360,0.12502,156.35,156.33,7.89]
[1727672947770,0.12502,156.35,156.27,15.3765653]
[1727672947962,0.12502,156.35,156.32,7.89]
[1727672948759,3.32282,156.35,156.32,7.89]
[1727672950469,0.12502,156.35,156.32,7.89]
[1727672950661,0.12502,156.35,156.32,11.0882]
[1727672951867,0.12502,156.35,156.33,3.1981]
[1727672952370,0.12502,156.35,156.31,7.89]
[1727672952568,0.12502,156.35,156.32,3.1983]
[1727672952872,0.12502,156.35,156.31,7.89]
[1727672952873,3.32282,156.35,156.31,7.89]
[1727672953370,3.32282,156.35,156.31,11.0884]
[1727672954071,0.12502,156.35,156.31,7.89]
[1727672955057,3.32282,156.35,156.31,11.0885]
[1727672956060,3.198,156.34,156.31,7.89]
[1727672957076,0.12502,156.35,156.32,7.89]
[1727672957869,0.12502,156.35,156.33,11.0881]
[1727672959973,0.12502,156.35,156.26,15.36781611]
[1727672960168,0.12502,156.35,156.32,3.1982]
[1727672960369,0.12502,156.35,156.32,11.0882]
[1727672961472,3.32272,156.35,156.32,11.0882]
[1727672963372,3.32272,156.35,156.32,3.1982]
[1727672964368,0.12502,156.35,156.32,3.1982]
[1727672964881,0.12502,156.35,156.33,7.89]
[1727672965370,0.12502,156.35,156.33,11.0881]
[1727672967973,0.12502,156.35,156.33,7.89]
[1727672968277,0.12502,156.35,156.34,11.0879]
[1727672972275,0.12502,156.35,156.34,7.89]
[1727672974371,0.12502,156.35,156.3,3.27029429]
[1727672974672,0.12502,156.35,156.34,7.89]
[1727672981580,0.12502,156.35,156.32,3.1983]
[1727672981780,0.12502,156.35,156.32,7.89]
[1727672981781,3.32292,156.35,156.32,7.89]
[1727672981983,0.12502,156.35,156.32,7.89]
[1727672982286,0.12502,156.35,156.32,11.0883]
[1727672982482,0.12502,156.35,156.34,7.89]
[1727672986485,0.12502,156.35,156.32,7.89]
[1727672987292,0.12502,156.35,156.32,11.0883]
[1727672990086,0.12502,156.35,156.33,3.1982]
[1727672991094,0.12502,156.35,156.34,7.89]
[1727672994303,0.12502,156.35,156.34,11.0879]
[1727672995010,0.12502,156.35,156.34,7.89]
[1727672998702,0.12502,156.35,156.34,11.0879]
[1727673000632,0.12502,156.35,156.34,7.89]
[1727673004008,0.12502,156.35,156.32,3.1982]
[1727673004314,0.12502,156.35,156.33,15.57206062]
[1727673004511,0.12502,156.35,156.33,7.89]
[1727673005109,0.12502,156.35,156.34,3.1979]
[1727673008320,0.12502,156.35,156.33,11.088]
[1727673008608,0.12502,156.35,156.32,7.89]
[1727673009205,3.32292,156.35,156.29,3.22166538]
[1727673009405,3.32292,156.35,156.32,7.89]
[1727673012819,3.198,156.34,156.3,3.1987]
[1727673013125,0.12502,156.35,156.31,15.57690989]
[1727673013417,3.32292,156.35,156.32,7.68690989]
[1727673013638,0.12502,156.35,156.31,7.89]
[1727673013810,3.198,156.34,156.32,7.68769557]
[1727673014008,3.198,156.34,156.31,7.89]
[1727673014208,3.198,156.34,156.32,7.68764961]
[1727673014416,3.1982,156.33,156.29,3.1988]
[1727673014716,3.1982,156.33,156.3,7.68889604]
[1727673014916,3.1982,156.33,156.31,7.68889604]
[1727673015117,3.1982,156.33,156.29,11.0888]
[1727673015318,3.1982,156.33,156.3,7.68830172]
[1727673015515,3.1982,156.33,156.29,11.0888]
[1727673015710,3.1982,156.33,156.3,7.68820906]
[1727673016012,3.1982,156.33,156.29,11.0888]
[1727673016221,3.1982,156.33,156.3,15.57862104]
[1727673016414,3.1982,156.33,156.3,7.89]
[1727673019720,3.1982,156.33,156.29,3.1988]
[1727673020025,3.1982,156.33,156.3,7.68779691]
[1727673020221,3.1982,156.33,156.29,11.0888]
[1727673020418,3.1984,156.32,156.29,11.0888]
[1727673020917,3.1982,156.33,156.29,11.0888]
[1727673021915,3.1982,156.33,156.26,15.37339335]
[1727673022114,3.1985,156.32,156.29,7.89]
[1727673022320,3.1985,156.32,156.3,7.89]
[1727673023017,12.53442,156.35,156.3,7.89]
[1727673023225,3.1982,156.33,156.3,7.89]
[1727673025221,12.53442,156.35,156.3,7.89]
[1727673025420,3.1984,156.32,156.28,3.1991]
[1727673025622,3.1984,156.32,156.29,7.89]
[1727673028221,3.1989,156.3,156.26,3.1995]
[1727673028427,3.1989,156.3,156.27,7.67785294]
[1727673028725,3.1989,156.3,156.26,11.0895]
[1727673028927,3.1989,156.3,156.27,7.6783059]
[1727673029130,3.1989,156.3,156.26,11.0895]
[1727673029727,3.1991,156.29,156.24,3.1998]
[1727673029929,3.1991,156.29,156.26,7.89]
[1727673030824,7.89,156.32,156.26,7.89]
[1727673031136,3.1988,156.3,156.26,7.89]
[1727673033024,3.1988,156.3,156.25,3.1998]
[1727673033220,3.1988,156.3,156.26,15.56218438]
[1727673033428,3.1988,156.3,156.26,7.89]
[1727673037330,3.1988,156.3,156.26,11.0896]
[1727673037829,3.1988,156.3,156.26,7.89]
[1727673039139,3.199,156.29,156.26,7.89]
[1727673039733,3.199,156.29,156.25,3.1997]
[1727673039734,3.1992,156.28,156.25,7.89]
[1727673039941,7.89,156.29,156.23,68.07914269]
[1727673040324,7.89,156.28,156.23,60.18914269]
[1727673041230,3.1997,156.26,156.23,60.18914269]
[1727673041430,3.1997,156.26,156.23,0.12502]
[1727673042829,3.1999,156.25,156.23,0.12502]
[1727673043824,3.2,156.24,156.23,0.12502]
[1727673047535,4.882,156.29,156.23,0.12502]
[1727673047728,3.1997,156.26,156.23,0.12502]
[1727673047933,7.89,156.27,156.23,0.12502]
[1727673048134,3.2,156.25,156.23,0.12502]
[1727673049031,3.1993,156.28,156.25,3.1998]
[1727673049236,3.1993,156.28,156.24,7.89]
[1727673049846,3.1993,156.28,156.24,11.0898]
[1727673050445,0.12502,156.35,156.27,7.89]
[1727673050646,7.89,156.34,156.28,7.89]
[1727673050947,3.26139257,156.33,156.28,7.89]
[1727673051139,3.1986,156.31,156.28,7.89]
[1727673051837,0.12502,156.35,156.3,7.89]
[1727673052040,0.12502,156.35,156.34,11.0879]
[1727673053141,0.12502,156.35,156.32,7.89]
[1727673053847,0.12502,156.35,156.31,7.89]
[1727673054048,3.32272,156.35,156.31,3.1984]
[1727673054249,3.32272,156.35,156.3,7.89]
[1727673055246,3.32272,156.35,156.3,11.0887]
[1727673055445,0.12502,156.35,156.34,7.89]
[1727673055644,0.12502,156.35,156.29,3.12460002]
[1727673055851,0.12502,156.35,156.31,3.1984]
[1727673056344,0.12518,156.36,156.28,1.5431]
[1727673056543,0.12518,156.36,156.35,11.0877]
[1727673056950,0.12518,156.36,156.35,7.89]
[1727673057742,0.12502,156.41,156.35,7.89]
[1727673057743,0.12502,156.41,156.36,3.1974]
[1727673057949,0.12502,156.41,156.38,7.89]
[1727673058843,0.12502,156.53,156.4,7.89]
[1727673059045,0.12502,156.53,156.29,0.12502]
[1727673059046,3.1953,156.48,156.45,7.89]
[1727673059254,3.1884197,156.5,156.45,7.89]
[1727673059443,3.1949,156.49,156.45,7.89]
[1727673060149,3.1943,156.52,156.46,7.89]
[1727673060449,7.89,156.51,156.38,72.3137]
[1727673060645,3.1948,156.5,156.45,7.89]
[1727673060846,7.89,156.5,156.44,7.89]
[1727673061250,3.195,156.49,156.44,7.89]
[1727673061452,3.195,156.49,156.43,11.0859]
[1727673061850,0.12502,156.53,156.45,7.89]
[1727673062057,3.1945,156.51,156.48,7.89]
[1727673063350,8.01502,156.53,156.46,11.0855]
[1727673063550,3.1947,156.5,156.46,7.89]
[1727673063757,3.1947,156.5,156.45,7.89]
[1727673064062,3.1949,156.49,156.45,7.89]
[1727673064560,3.1948,156.5,156.45,7.89]
[1727673064866,7.89,156.46,156.41,0.12502]
[1727673065554,7.89,156.44,156.41,0.12502]
[1727673065751,3.2355,156.49,156.41,0.12502]
[1727673065752,0.12502,156.53,156.43,7.89]
[1727673065955,7.89,156.49,156.43,7.89]
[1727673066358,7.89,156.48,156.41,0.12502]
[1727673066557,7.89,156.48,156.42,7.89]
[1727673067357,3.1957,156.45,156.42,7.89]
[1727673067861,3.196,156.44,156.41,0.12502]
[1727673068161,7.89,156.45,156.41,0.12502]
[1727673070462,7.89,156.43,156.41,0.12502]
[1727673070850,3.1963,156.42,156.41,0.12502]
[1727673079471,7.89,156.42,156.34,3.1978]
[1727673079672,7.89,156.4,156.35,8.01502]
[1727673080162,7.89,156.4,156.35,0.12502]
[1727673080363,7.89,156.4,156.35,8.01502]
[1727673080563,3.1975,156.37,156.35,8.01502]
[1727673080773,7.89,156.4,156.35,0.12502]
[1727673081069,3.1975,156.37,156.35,0.12502]
[1727673081267,7.89,156.39,156.35,0.12502]
[1727673082162,3.1975,156.36,156.35,0.12502]
[1727673085772,3.1973,156.38,156.35,8.01502]
[1727673085972,7.89,156.42,156.37,7.89]
[1727673086369,3.1971,156.38,156.37,7.89]
[1727673088574,3.1974,156.37,156.35,8.01502]
[1727673088881,7.89,156.41,156.35,8.01502]
[1727673089178,3.1975,156.36,156.35,0.12502]
[1727673102376,4.8932,156.46,156.35,8.01502]
[1727673102684,7.89,156.43,156.37,7.89]
[1727673103081,3.1971,156.39,156.37,7.89]
[1727673103290,7.89,156.43,156.37,7.89]
[1727673103882,7.89,156.43,156.35,0.12502]
[1727673104185,3.1972,156.38,156.36,7.89]
[1727673110791,3.197,156.39,156.36,7.89]
[1727673114298,4.8932,156.46,156.38,7.89]
[1727673114591,4.8932,156.46,156.41,7.89]
[1727673114592,12.7832,156.46,156.41,7.89]
[1727673114793,3.1963,156.42,156.41,7.89]
[1727673114985,12.7832,156.46,156.41,7.89]
[1727673115383,3.1962,156.43,156.41,7.89]
[1727673115980,4.8932,156.46,156.41,7.89]
[1727673116311,3.24858101,156.47,156.41,7.89]
[1727673116312,3.1958,156.45,156.41,11.0864]
[1727673116489,0.12502,156.47,156.43,7.89]
[1727673116691,3.1955,156.46,156.43,7.89]
[1727673117300,3.1957,156.45,156.43,7.89]
[1727673119794,3.1956,156.46,156.43,7.89]
[1727673120798,0.12502,156.47,156.38,3.201]
[1727673120990,7.89,156.45,156.39,7.89]
[1727673122403,0.12502,156.47,156.4,7.89]
[1727673122708,8.01502,156.47,156.42,7.89]
[1727673122998,3.1958,156.45,156.42,7.89]
[1727673124306,3.1959,156.44,156.42,7.89]
[1727673126806,3.1958,156.45,156.42,7.89]
[1727673128295,0.12502,156.47,156.43,7.89]
[1727673128495,3.32032,156.47,156.45,7.89]
[1727673131413,3.1955,156.46,156.44,7.89]
[1727673134005,7.89,156.46,156.41,7.89]
[1727673134607,3.1958,156.45,156.41,11.0864]
[1727673135211,3.1958,156.45,156.42,7.89]
[1727673137121,3.1958,156.45,156.42,11.0863]
[1727673139420,0.12502,156.47,156.42,11.0863]
[1727673140314,3.1957,156.45,156.41,3.1964]
[1727673140620,3.1957,156.45,156.42,7.89]
[1727673141619,3.1957,156.45,156.42,11.0863]
[1727673142515,3.1956,156.46,156.44,7.89]
[1727673144016,3.1959,156.44,156.41,3.1965]
[1727673144207,3.1959,156.44,156.41,7.89]
[1727673145324,3.1958,156.45,156.41,7.89]
[1727673145518,3.1958,156.45,156.41,11.0864]
[1727673147717,3.1959,156.44,156.41,11.0864]
[1727673148929,3.1962,156.43,156.41,7.89]
[1727673149824,3.1962,156.43,156.35,0.12502]
[1727673150125,3.1962,156.43,156.41,7.89]
[1727673153017,7.89,156.46,156.35,0.12502]
[1727673153224,7.89,156.44,156.35,0.12502]
[1727673153429,7.89,156.44,156.38,7.89]
[1727673153732,4.806,156.45,156.4,7.89]
[1727673154622,3.196,156.44,156.4,7.89]
[1727673154831,4.806,156.45,156.4,7.89]
[1727673155824,3.1963,156.42,156.4,7.89]
[1727673156924,4.806,156.45,156.4,7.89]
[1727673157162,3.1962,156.43,156.4,7.89]
[1727673157330,4.806,156.45,156.4,7.89]
[1727673157719,3.1963,156.43,156.4,7.89]
[1727673158124,4.806,156.45,156.4,7.89]
[1727673158734,3.1963,156.42,156.4,7.89]
[1727673170144,3.1963,156.42,156.41,7.89]
[1727673170842,0.12502,156.47,156.41,7.89]
[1727673171031,3.196,156.44,156.43,7.89]
[1727673171441,3.38949073,156.47,156.43,7.89]
[1727673171442,3.1957,156.45,156.43,7.89]
[1727673171639,3.1957,156.45,156.44,7.89]
[1727673171835,0.12502,156.47,156.44,7.89]
[1727673172034,3.1957,156.46,156.44,7.89]
[1727673172632,3.1957,156.45,156.44,7.89]
[1727673207461,0.12502,156.47,156.37,7.85901971]
[1727673207661,3.1964,156.42,156.39,3.1968]
[1727673207866,3.1964,156.42,156.41,7.89]
[1727673208071,3.1964,156.42,156.41,15.52993844]
[1727673208865,3.1964,156.42,156.41,7.89]
[1727673209061,3.1964,156.42,156.41,7.6408087]
[1727673209463,3.1964,156.42,156.41,15.5308087]
[1727673212072,3.1964,156.42,156.41,7.89]
[1727673213290,3.1964,156.42,156.41,15.52542572]
[1727673213484,7.89,156.45,156.37,84.02950982]
[1727673213777,7.89,156.45,156.4,7.89]
[1727673214182,3.1965,156.41,156.4,7.89]
[1727673224287,3.1965,156.41,156.37,84.02950982]
[1727673224486,3.1965,156.41,156.4,7.89]
[1727673228395,3.1967,156.4,156.39,7.89]
[1727673230794,3.197,156.39,156.37,84.02950982]
[1727673231101,3.197,156.39,156.38,7.89]
[1727673233299,3.197,156.39,156.37,84.02950982]
[1727673233498,3.197,156.39,156.38,7.89]
[1727673244306,3.1966,156.41,156.38,7.89]
[1727673244516,3.1966,156.41,156.4,7.89]
[1727673248013,5.0436,156.46,156.4,7.89]
[1727673248214,3.196,156.44,156.43,7.89]
[1727673252823,5.0436,156.46,156.42,7.89]
[1727673253028,3.1962,156.43,156.42,7.89]
[1727673253918,3.1964,156.42,156.41,7.89]
[1727673260120,3.1965,156.41,156.37,87.22680982]
[1727673260325,3.1965,156.41,156.4,7.89]
[1727673260916,3.1962,156.43,156.37,84.02950982]
[1727673261217,7.89,156.45,156.39,7.89]
[1727673262019,3.1967,156.41,156.39,7.89]
[1727673263917,3.1964,156.42,156.4,7.89]
[1727673266927,12.9336,156.46,156.37,87.22670982]
[1727673267133,12.9336,156.46,156.4,7.89]
[1727673268029,3.1965,156.42,156.4,7.89]
[1727673275636,12.9336,156.46,156.37,84.02950982]
[1727673275867,3.1968,156.4,156.39,7.89]
[1727673282252,5.0436,156.46,156.39,7.89]
[1727673282547,12.9336,156.46,156.4,7.89]
[1727673283348,3.1963,156.42,156.4,7.89]
[1727673284251,12.9336,156.46,156.4,7.89]
[1727673284452,3.1965,156.42,156.4,7.89]
[1727673287252,3.1965,156.41,156.4,7.89]
[1727673290551,5.0436,156.46,156.38,7.89]
[1727673290552,7.89,156.44,156.38,7.89]
[1727673291049,3.1968,156.4,156.38,7.89]
[1727673293962,3.1973,156.38,156.36,7.89]
[1727673294156,7.89,156.4,156.36,7.89]
[1727673294462,7.89,156.4,156.35,0.12502]
[1727673294463,3.1975,156.37,156.35,0.12502]
[1727673294851,7.89,156.4,156.35,0.12502]
[1727673295660,3.1974,156.37,156.35,0.12502]
[1727673295862,7.89,156.38,156.35,0.12502]
[1727673296179,7.89,156.37,156.35,0.12502]
[1727673296429,3.1975,156.36,156.35,0.12502]
[1727673297857,3.1975,156.36,156.29,3.32382]
[1727673297858,3.1983,156.33,156.3,7.89]
[1727673298057,7.89,156.34,156.29,0.12502]
[1727673298259,7.89,156.34,156.29,8.01502]
[1727673298455,3.1982,156.33,156.29,0.12502]
[1727673298654,3.1982,156.33,156.29,8.01502]
[1727673300959,3.1982,156.33,156.29,0.12502]
[1727673301263,3.1982,156.33,156.3,7.89]
[1727673301867,3.198,156.34,156.3,7.89]
[1727673302062,3.198,156.34,156.31,7.89]
[1727673303663,7.89,156.36,156.31,7.89]
[1727673303863,3.1982,156.33,156.31,7.89]
[1727673304865,3.1978,156.35,156.32,7.89]
[1727673305063,4.7549,156.38,156.34,7.89]
[1727673305460,3.1977,156.36,156.34,7.89]
[1727673305768,4.7549,156.38,156.34,7.89]
[1727673306067,3.1977,156.35,156.34,7.89]
[1727673307463,3.1977,156.35,156.33,7.89]
[1727673311467,3.1979,156.34,156.33,7.89]
[1727673312368,12.6449,156.38,156.35,3.1976]
[1727673312369,3.1972,156.38,156.35,3.1976]
[1727673312570,3.1972,156.38,156.37,7.89]
[1727673313572,8.01502,156.41,156.35,7.89]
[1727673313762,3.1975,156.37,156.35,7.89]
[1727673315373,8.01502,156.41,156.35,7.89]
[1727673316085,3.1973,156.38,156.35,7.89]
[1727673316769,3.1974,156.37,156.35,7.89]
[1727673319267,3.1974,156.37,156.36,7.89]
[1727673337181,3.1971,156.39,156.36,11.0875]
[1727673337492,0.12502,156.41,156.39,7.89]
[1727673338086,3.1968,156.4,156.39,7.89]
[1727673344996,3.197,156.39,156.38,7.89]
[1727673347101,3.1973,156.38,156.35,3.1977]
[1727673347298,3.1973,156.38,156.37,7.89]
[1727673348000,3.1975,156.37,156.33,87.24874057]
[1727673348304,3.1975,156.37,156.36,7.89]
[1727673351697,3.1968,156.4,156.36,7.89]
[1727673351904,0.12502,156.41,156.38,7.89]
[1727673353312,3.1971,156.39,156.38,7.89]
[1727673353606,0.12502,156.41,156.38,7.89]
[1727673353805,3.1968,156.4,156.39,7.89]
[1727673355200,3.197,156.39,156.35,3.1976]
[1727673355396,3.197,156.39,156.38,7.89]
[1727673374029,3.1968,156.4,156.38,7.89]
[1727673374224,3.1968,156.4,156.39,7.89]
[1727673379736,0.12502,156.41,156.39,11.0869]
[1727673380326,0.12502,156.41,156.4,7.66500363]
[1727673380635,0.12502,156.47,156.4,10.88299221]
[1727673380838,3.1957,156.45,156.44,7.89]
[1727673392239,3.1955,156.46,156.44,7.89]
[1727673396845,3.1955,156.46,156.43,3.196]
[1727673397037,3.1955,156.46,156.45,7.89]
[1727673397247,3.32042,156.47,156.45,7.89]
[1727673400446,3.1955,156.46,156.45,7.89]
[1727673401241,0.12502,156.47,156.45,7.89]
[1727673401952,3.32042,156.47,156.45,7.89]
[1727673402949,0.12502,156.47,156.45,7.89]
[1727673403150,3.1945,156.52,156.49,3.1948]
[1727673403351,3.1945,156.52,156.51,7.89]
[1727673406559,3.1946,156.51,156.48,3.195]
[1727673406743,3.1946,156.51,156.5,7.89]
[1727673409145,0.12502,156.53,156.41,3.70392]
[1727673409146,0.12502,156.53,156.43,7.63631755]
[1727673409355,3.1952,156.48,156.42,12.21811271]
[1727673409553,3.1952,156.48,156.47,7.89]
[1727673411448,3.1954,156.47,156.46,7.89]
[1727673414655,0.12502,156.53,156.46,11.0854]
[1727673414854,0.12502,156.53,156.52,7.89]
[1727673416357,3.31912,156.53,156.52,7.89]
[1727673426759,0.12502,156.53,156.52,7.89]
[1727673430474,3.31912,156.53,156.52,7.89]
[1727673435177,0.12502,156.53,156.52,7.89]
[1727673441082,0.12518,156.55,156.52,7.89]
[1727673441386,0.12502,156.59,156.49,3.12352226]
[1727673441580,0.12502,156.59,156.58,7.89]
[1727673442179,3.31782,156.59,156.58,7.89]
[1727673446992,0.12502,156.59,156.57,7.89]
[1727673447192,3.1932,156.58,156.57,7.89]
[1727673448389,3.31792,156.59,156.57,7.89]
[1727673448578,3.31792,156.59,156.52,3.16604906]
[1727673448579,0.12502,156.59,156.58,7.89]
[1727673449090,3.31782,156.59,156.58,7.89]
[1727673449991,3.193,156.58,156.57,7.89]
[1727673450786,3.1938,156.55,156.48,3.6015]
[1727673451092,3.1938,156.55,156.54,7.89]
[1727673451594,3.1938,156.55,156.51,3.1943]
[1727673451783,0.12502,156.59,156.54,7.89]
[1727673451985,3.1934,156.57,156.56,7.89]
[1727673454484,3.1942,156.53,156.48,3.2258]
[1727673454714,0.12502,156.59,156.52,7.89]
[1727673454885,8.01502,156.59,156.54,7.89]
[1727673455095,3.1939,156.54,156.5,3.1947]
[1727673455397,3.1939,156.54,156.53,7.89]
[1727673455582,7.89,156.56,156.47,0.12502]
[1727673455787,7.89,156.55,156.5,7.89]
[1727673456091,9.4703,156.55,156.5,7.89]
[1727673456395,3.1944,156.52,156.5,7.89]
[1727673458693,3.1945,156.51,156.5,7.89]
[1727673459004,9.4703,156.55,156.49,7.89]
[1727673459298,3.1947,156.5,156.49,7.89]
[1727673461605,3.1945,156.51,156.49,7.89]
[1727673462304,1.6597,156.54,156.49,7.89]
[1727673462506,3.1947,156.5,156.49,7.89]
[1727673463896,3.1947,156.5,156.47,0.12502]
[1727673464109,3.1947,156.5,156.49,7.89]
[1727673467209,1.6597,156.54,156.49,7.89]
[1727673467417,1.6597,156.54,156.5,7.89]
[1727673467613,1.5803,156.55,156.5,7.89]
[1727673469204,3.1944,156.52,156.5,7.89]
[1727673473029,3.1942,156.53,156.51,7.89]
[1727673473226,1.6514,156.57,156.51,7.89]
[1727673473523,1.57,156.58,156.55,7.89]
[1727673473722,3.1933,156.57,156.55,7.89]
[1727673475528,1.79742,156.59,156.55,7.89]
[1727673475721,3.1931,156.58,156.56,7.89]
[1727673476131,1.79742,156.59,156.55,7.89]
[1727673477024,3.1932,156.58,156.55,7.89]
[1727673484232,3.1932,156.58,156.56,7.89]
[1727673486136,1.79742,156.59,156.56,7.89]
[1727673486432,3.1933,156.57,156.56,7.89]
[1727673492341,3.1933,156.57,156.53,3.194]
[1727673492633,3.1933,156.57,156.56,7.89]
[1727673507955,3.1932,156.58,156.56,7.89]
[1727673508249,0.12502,156.59,156.58,7.89]